fUSD/lending_fUSD_20250428
["ID","MTS","AMOUNT","RATE_DAILY","PERIOD"]
[359207351,1745813441669,260.69994104,0.00041095,30]
[359207356,1745813441710,480.0,0.00041095,30]
[359207362,1745813441753,245.95922469,0.00041095,30]
[359207386,1745813441974,243.11987707,0.00041095,30]
[359207449,1745813442558,469.32455624,0.00041095,30]
[359207478,1745813442818,480.0,0.00041095,30]
[359207503,1745813443037,480.0,0.00041095,30]
[359207535,1745813443332,480.0,0.00041095,30]
[359207540,1745813443374,278.89661867,0.00041095,30]
[359207543,1745813443390,-17531.85548016,0.000199,2]
[359207549,1745813443433,-1384.28247185,0.000199,2]
[359207570,1745813443613,480.0,0.00041095,30]
[359207572,1745813443625,-1127.41816741,0.000199,2]
[359207574,1745813443636,-7800.0,0.000199,2]
[359207580,1745813443678,480.0,0.00041095,30]
[359207582,1745813443694,-605.79845616,0.000199,2]
[359207584,1745813443703,-52.58014585,0.000199,2]
[359207587,1745813443714,-260.34470952,0.000199,2]
[359207593,1745813443760,480.0,0.00041095,30]
[359207595,1745813443773,-1003.62594463,0.000199,2]
[359207597,1745813443782,-497.85828268,0.000199,2]
[359207604,1745813443827,436.70718204,0.00041095,30]
[359207610,1745813443869,480.0,0.00041095,30]
[359207615,1745813443918,480.0,0.00041095,30]
[359207621,1745813443963,480.0,0.00041095,30]
[359207632,1745813444061,480.0,0.00041095,30]
[359207636,1745813444141,480.0,0.00041095,30]
[359207651,1745813444320,248.49289903,0.00041095,30]
[359207656,1745813444362,480.0,0.00041095,30]
[359207662,1745813444407,580.6615131,0.00041095,30]
[359207682,1745813444588,480.0,0.00041095,30]
[359207710,1745813444853,480.0,0.00041095,30]
[359207733,1745813445073,480.0,0.00041095,30]
[359207739,1745813445116,480.0,0.00041095,30]
[359207744,1745813445158,480.0,0.00041095,30]
[359207767,1745813445368,480.0,0.00041095,30]
[359207789,1745813445569,480.0,0.00041095,30]
[359207795,1745813445613,480.0,0.00041095,30]
[359207801,1745813445664,480.0,0.00041095,30]
[359207809,1745813445728,252.97,0.00041095,30]
[359207819,1745813445813,480.0,0.00041095,30]
[359207824,1745813445856,480.0,0.00041095,30]
[359207831,1745813445908,480.0,0.00041095,30]
[359207853,1745813446089,480.0,0.00041095,30]
[359207867,1745813446218,480.0,0.00041095,30]
[359207874,1745813446273,153.61,0.00041095,30]
[359207878,1745813446323,416.58507224,0.00041095,30]
[359207896,1745813446491,480.0,0.00041095,30]
[359207899,1745813446510,-809.27061732,0.000199,2]
[359207901,1745813446520,-166.47152989,0.000199,2]
[359207903,1745813446530,-609.46137897,0.000199,2]
[359207905,1745813446540,-1147.92937002,0.000199,2]
[359207907,1745813446549,-500.0,0.00019973,2]
[359207909,1745813446558,-160.05643078,0.00019973,2]
[359207911,1745813446568,-500.0,0.00019973,2]
[359207913,1745813446577,-500.0,0.00019973,2]
[359207915,1745813446587,-278.804,0.00019973,2]
[359207917,1745813446596,-2374.7436107,0.00019986,2]
[359207919,1745813446606,-303.14617301,0.00019986,2]
[359207933,1745813446727,480.0,0.00041095,30]
[359207951,1745813446974,480.0,0.00041095,30]
[359207977,1745813447214,480.0,0.00041095,30]
[359208002,1745813447457,480.0,0.00041095,30]
[359208016,1745813447754,480.0,0.00041095,30]
[359208021,1745813447797,468.44689278,0.00041095,30]
[359208036,1745813448007,537.83972045,0.00041095,30]
[359208042,1745813448057,480.0,0.00041095,30]
[359208049,1745813448161,480.0,0.00041095,30]
[359208069,1745813448341,465.0294344,0.00041095,30]
[359208080,1745813448444,480.0,0.00041095,30]
[359208106,1745813448679,480.0,0.00041095,30]
[359208136,1745813448954,480.0,0.00041095,30]
[359208163,1745813449213,281.22782628,0.00041095,30]
[359208209,1745813449752,480.0,0.00041095,30]
[359208236,1745813450001,480.0,0.00041095,30]
[359208242,1745813450044,480.0,0.00041095,30]
[359208255,1745813450246,273.97187033,0.00041095,30]
[359208256,1745813450300,178.94771223,0.00041095,30]
[359208257,1745813450344,480.0,0.00041095,30]
[359208258,1745813450389,480.0,0.00041095,30]
[359208259,1745813450464,480.0,0.00041095,30]
[359208260,1745813450605,480.0,0.00041095,30]
[359208261,1745813450649,480.0,0.00041095,30]
[359208262,1745813450717,480.0,0.00041095,30]
[359208263,1745813450862,480.0,0.00041095,30]
[359208264,1745813450910,480.0,0.00041095,30]
[359208265,1745813450958,291.676946,0.00041095,30]
[359208266,1745813451245,480.0,0.00041095,30]
[359208267,1745813451366,480.0,0.00041095,30]
[359208268,1745813451432,480.0,0.00041095,30]
[359208269,1745813451593,326.97005362,0.00041095,30]
[359208270,1745813451670,480.0,0.00041095,30]
[359208271,1745813451903,480.0,0.00041095,30]
[359208272,1745813452001,480.0,0.00041095,30]
[359208273,1745813452168,480.0,0.00041095,30]
[359208274,1745813452405,440.30129616,0.00041095,30]
[359208275,1745813452457,480.0,0.00041095,30]
[359208276,1745813452507,480.0,0.00041095,30]
[359208277,1745813452554,480.0,0.00041095,30]
[359208278,1745813452612,480.0,0.00041095,30]
[359208279,1745813452656,480.0,0.00041095,30]
[359208280,1745813452696,480.0,0.00041095,30]
[359208281,1745813452888,219.13951986,0.00041095,30]
[359208282,1745813452935,200.93,0.00041095,120]
[359208283,1745813452990,480.0,0.00041095,30]
[359208284,1745813453032,480.0,0.00041095,30]
[359208285,1745813453187,480.0,0.00041095,30]
[359208286,1745813453440,480.0,0.00041095,30]
[359208287,1745813453674,480.0,0.00041095,30]
[359208288,1745813453917,480.0,0.00041095,30]
[359208289,1745813454134,480.0,0.00041095,30]
[359208290,1745813454180,221.25,0.00041095,30]
[359208291,1745813454393,480.0,0.00041095,30]
[359208292,1745813454615,249.37336486,0.00041095,30]
[359208293,1745813454821,480.0,0.00041095,30]
[359208294,1745813455077,480.0,0.00041095,30]
[359208295,1745813455672,480.0,0.00041095,30]
[359208296,1745813455716,480.0,0.00041095,30]
[359208297,1745813455917,480.0,0.00041095,30]
[359208298,1745813455976,480.0,0.00041095,30]
[359208299,1745813456113,480.0,0.00041095,30]
[359208300,1745813456231,304.48516264,0.00041095,30]
[359208301,1745813456279,480.0,0.00041095,30]
[359208302,1745813456357,480.0,0.00041095,30]
[359208303,1745813456399,415.79036774,0.00041095,30]
[359208304,1745813456442,154.070009,0.00039822,60]
[359208305,1745813456534,450.0,0.00041095,30]
[359208306,1745813456590,480.0,0.00041095,30]
[359208307,1745813456630,480.0,0.00041095,30]
[359208308,1745813456672,480.0,0.00041095,30]
[359208309,1745813456723,154.070009,0.0004109,31]
[359208310,1745813456827,480.0,0.00041095,30]
[359208311,1745813456886,480.0,0.00041095,30]
[359208312,1745813456986,480.0,0.00041095,30]
[359208313,1745813457082,334.91477049,0.00041095,30]
[359208314,1745813457131,480.0,0.00041095,30]
[359208315,1745813457229,480.0,0.00041095,30]
[359208316,1745813457271,480.0,0.00041095,30]
[359208317,1745813457308,154.070009,0.0002,5]
[359208318,1745813457349,251.00719731,0.00041095,30]
[359208319,1745813457377,-214.78179553,0.00019873,2]
[359208320,1745813457487,181.72309961,0.00041095,30]
[359208321,1745813457528,480.0,0.00041095,30]
[359208322,1745813457737,480.0,0.00041095,30]
[359208323,1745813457975,480.0,0.00041095,30]
[359208324,1745813458022,480.0,0.00041095,30]
[359208325,1745813458254,480.0,0.00041095,30]
[359208326,1745813458295,480.0,0.00041095,30]
[359208327,1745813458530,480.0,0.00041095,30]
[359208328,1745813458640,326.13582819,0.00041095,30]
[359208329,1745813458805,480.0,0.00041095,30]
[359208330,1745813459036,480.0,0.00041095,30]
[359208331,1745813459081,480.0,0.00041095,30]
[359208332,1745813459273,480.0,0.00041095,30]
[359208333,1745813459316,480.0,0.00041095,30]
[359208334,1745813459357,496.72065474,0.00041095,30]
[359208335,1745813459513,480.0,0.00041095,30]
[359208336,1745813459810,480.0,0.00041095,30]
[359208337,1745813459912,461.02149763,0.00041095,30]
[359208338,1745813460053,248.89592905,0.00041095,30]
[359208339,1745813461073,480.0,0.00041095,30]
[359208340,1745813461476,480.0,0.00041095,30]
[359208341,1745813461543,480.0,0.00041095,30]
[359208342,1745813461788,480.0,0.00041095,30]
[359208343,1745813462203,480.0,0.00041095,30]
[359208344,1745813462245,480.0,0.00041095,30]
[359208345,1745813462287,480.0,0.00041095,30]
[359208346,1745813462361,480.0,0.00041095,30]
[359208347,1745813462480,480.0,0.00041095,30]
[359208348,1745813462622,480.0,0.00041095,30]
[359208349,1745813462715,480.0,0.00041095,30]
[359208350,1745813462805,416.02755224,0.00041095,30]
[359208351,1745813462852,480.0,0.00041095,30]
[359208352,1745813462960,533.20542349,0.00041095,30]
[359208353,1745813463091,331.03467426,0.00041095,30]
[359208354,1745813463213,480.0,0.00041095,30]
[359208355,1745813463455,480.0,0.00041095,30]
[359208356,1745813463572,-29.54487088,0.00019873,2]
[359208357,1745813463700,480.0,0.00041095,30]
[359208358,1745813463947,480.0,0.00041095,30]
[359208359,1745813463998,480.0,0.00041095,30]
[359208360,1745813464127,480.0,0.00041095,30]
[359208361,1745813464224,613.81714338,0.00041095,30]
[359208362,1745813464544,607.87383354,0.00041095,30]
[359208363,1745813464722,480.0,0.00041095,30]
[359208364,1745813464964,375.70460058,0.00041095,30]
[359208365,1745813465793,480.0,0.00041095,30]
[359208366,1745813466070,480.0,0.00041095,30]
[359208367,1745813466114,480.0,0.00041095,30]
[359208368,1745813466298,234.85,0.00041095,30]
[359208369,1745813466339,480.0,0.00041095,30]
[359208370,1745813466567,157.0835305,0.00041095,30]
[359208371,1745813466779,480.0,0.00041095,30]
[359208372,1745813467020,480.0,0.00041095,30]
[359208373,1745813467258,480.0,0.00041095,30]
[359208374,1745813467494,480.0,0.00041095,30]
[359208375,1745813467647,702.55,0.00041095,30]
[359208376,1745813467708,480.0,0.00041095,30]
[359208377,1745813467755,480.0,0.00041095,30]
[359208378,1745813467883,702.55,0.00041095,30]
[359208379,1745813467973,480.0,0.00041095,30]
[359208380,1745813468019,476.4187311,0.00041095,30]
[359208381,1745813468136,702.55,0.00041095,30]
[359208382,1745813468183,480.0,0.00041095,30]
[359208383,1745813468232,480.0,0.00041095,30]
[359208384,1745813468344,480.0,0.00041095,30]
[359208385,1745813468390,702.55,0.00041095,30]
[359208386,1745813468431,480.0,0.00041095,30]
[359208387,1745813468475,480.0,0.00041095,30]
[359208388,1745813468599,165.09267537,0.00041095,30]
[359208389,1745813468640,702.55,0.00041095,30]
[359208390,1745813468681,480.0,0.00041095,30]
[359208391,1745813468724,252.13515196,0.00041095,30]
[359208392,1745813468883,702.55,0.00041095,30]
[359208393,1745813468962,500.84125026,0.00041095,30]
[359208394,1745813469126,702.55,0.00041095,30]
[359208395,1745813469193,152.686993,0.00041095,30]
[359208396,1745813469351,702.55,0.00041095,30]
[359208397,1745813469492,152.686993,0.00041095,30]
[359208398,1745813469572,702.55,0.00041095,30]
[359208399,1745813469817,702.55,0.00041095,30]
[359208400,1745813470062,702.55,0.00041095,30]
[359208401,1745813470296,702.55,0.00041095,30]
[359208402,1745813470557,702.55,0.00041095,30]
[359208403,1745813470816,702.55,0.00041095,30]
[359208404,1745813471058,702.55,0.00041095,30]
[359208405,1745813471290,702.55,0.00041095,30]
[359208406,1745813471400,480.0,0.00041095,30]
[359208407,1745813471633,702.55,0.00041095,30]
[359208408,1745813471720,480.0,0.00041095,30]
[359208409,1745813471789,480.0,0.00041095,30]
[359208410,1745813471991,702.55,0.00041095,30]
[359208411,1745813472043,480.0,0.00041095,30]
[359208412,1745813472087,480.0,0.00041095,30]
[359208413,1745813472130,702.55,0.00041095,30]
[359208414,1745813472197,154.98447423,0.00041095,120]
[359208415,1745813472256,480.0,0.00041095,30]
[359208416,1745813472337,252.56811638,0.00041095,30]
[359208417,1745813472392,480.0,0.00041095,30]
[359208418,1745813472444,702.55,0.00041095,30]
[359208419,1745813472492,319.77338186,0.00041095,30]
[359208420,1745813472550,480.0,0.00041095,30]
[359208421,1745813472595,152.686993,0.00039822,60]
[359208422,1745813472645,702.55,0.00041095,30]
[359208423,1745813472716,277.97642985,0.00041095,30]
[359208424,1745813472793,702.55,0.00041095,30]
[359208425,1745813472842,152.686993,0.00038548,60]
[359208426,1745813473025,480.0,0.00041095,30]
[359208427,1745813473150,152.686993,0.00037274,60]
[359208428,1745813473258,480.0,0.00041095,30]
[359208429,1745813473382,702.55,0.00041095,30]
[359208430,1745813473440,152.686993,0.0004109,31]
[359208431,1745813473494,480.0,0.00041095,30]
[359208432,1745813473631,702.62865231,0.00041095,30]
[359208433,1745813473740,152.686993,0.00040742,31]
[359208434,1745813473783,437.54304079,0.00041095,30]
[359208435,1745813474047,152.686993,0.00040395,31]
[359208436,1745813474093,480.0,0.00041095,30]
[359208437,1745813474291,480.0,0.00041095,30]
[359208438,1745813474336,152.686993,0.00040048,31]
[359208439,1745813474509,480.0,0.00041095,30]
[359208440,1745813474552,480.0,0.00041095,30]
[359208441,1745813474770,403.39,0.00041095,30]
[359208442,1745813475419,480.0,0.00041095,30]
[359208443,1745813475651,480.0,0.00041095,30]
[359208444,1745813475697,480.0,0.00041095,30]
[359208445,1745813475903,249.37781852,0.00041095,30]
[359208446,1745813475956,480.0,0.00041095,30]
[359208447,1745813476023,480.0,0.00041095,30]
[359208448,1745813476185,578.96728919,0.00041095,30]
[359208449,1745813476242,152.686993,0.0002,5]
[359208450,1745813476534,152.686993,0.0002,5]
[359208451,1745813476611,480.0,0.00041095,30]
[359208452,1745813476850,480.0,0.00041095,30]
[359208453,1745813476881,152.686993,0.0002,5]
[359208454,1745813476960,480.0,0.00041095,30]
[359208455,1745813477093,480.0,0.00041095,30]
[359208456,1745813477367,294.80293444,0.00041095,30]
[359208457,1745813477475,480.0,0.00041095,30]
[359208458,1745813477521,480.0,0.00041095,30]
[359208459,1745813477745,480.0,0.00041095,30]
[359208460,1745813477785,480.0,0.00041095,30]
[359208461,1745813477828,480.0,0.00041095,30]
[359208462,1745813477983,480.0,0.00041095,30]
[359208463,1745813478026,480.0,0.00041095,30]
[359208464,1745813478067,480.0,0.00041095,30]
[359208465,1745813478109,480.0,0.00041095,30]
[359208466,1745813478231,566.47,0.00041095,30]
[359208467,1745813478280,480.0,0.00041095,30]
[359208468,1745813478328,467.27,0.00041095,30]
[359208469,1745813478374,480.0,0.00041095,30]
[359208470,1745813478487,187.69260405,0.00041095,30]
[359208471,1745813478540,480.0,0.00041095,30]
[359208472,1745813478772,480.0,0.00041095,30]
[359208473,1745813479005,480.0,0.00041095,30]
[359208474,1745813479195,480.0,0.00041095,30]
[359208475,1745813479249,273.9,0.00041095,30]
[359208476,1745813479432,480.0,0.00041095,30]
[359208477,1745813479670,480.0,0.00041095,30]
[359208478,1745813479923,257.84830219,0.00041095,30]
[359208479,1745813480316,480.0,0.00041095,30]
[359208480,1745813480403,480.0,0.00041095,30]
[359208481,1745813480445,285.02011543,0.00041095,30]
[359208482,1745813480717,480.0,0.00041095,30]
[359208483,1745813480769,456.43791572,0.00041095,30]
[359208484,1745813480813,480.0,0.00041095,30]
[359208485,1745813481043,480.0,0.00041095,30]
[359208486,1745813481317,386.4460196,0.00041095,30]
[359208487,1745813481903,273.03005224,0.00041095,30]
[359208488,1745813482797,480.0,0.00041095,30]
[359208489,1745813483048,480.0,0.00041095,30]
[359208490,1745813483305,480.0,0.00041095,30]
[359208491,1745813483416,480.0,0.00041095,30]
[359208492,1745813483566,480.0,0.00041095,30]
[359208493,1745813483664,480.0,0.00041095,30]
[359208494,1745813483705,480.0,0.00041095,30]
[359208495,1745813483807,480.0,0.00041095,30]
[359208496,1745813483878,480.0,0.00041095,30]
[359208497,1745813483919,480.0,0.00041095,30]
[359208498,1745813483961,480.0,0.00041095,30]
[359208499,1745813484069,480.0,0.00041095,30]
[359208500,1745813484157,480.0,0.00041095,30]
[359208501,1745813484201,480.0,0.00041095,30]
[359208502,1745813484242,312.55455431,0.00041095,30]
[359208503,1745813484315,622.7465292,0.00041095,30]
[359208504,1745813484388,480.0,0.00041095,30]
[359208505,1745813484625,480.0,0.00041095,30]
[359208506,1745813484669,480.0,0.00041095,30]
[359208507,1745813484870,480.0,0.00041095,30]
[359208508,1745813485115,480.0,0.00041095,30]
[359208509,1745813485370,523.26203866,0.00041095,30]
[359208510,1745813485586,480.0,0.00041095,30]
[359208511,1745813485761,480.0,0.00041095,30]
[359208512,1745813485819,480.0,0.00041095,30]
[359208513,1745813486023,480.0,0.00041095,30]
[359208514,1745813486261,480.0,0.00041095,30]
[359208515,1745813486547,480.0,0.00041095,30]
[359208516,1745813486747,480.0,0.00041095,30]
[359208517,1745813486791,480.0,0.00041095,30]
[359208518,1745813486833,480.0,0.00041095,30]
[359208519,1745813487004,480.0,0.00041095,30]
[359208520,1745813487065,480.0,0.00041095,30]
[359208521,1745813487111,480.0,0.00041095,30]
[359208522,1745813487270,304.1160997,0.00041095,30]
[359208523,1745813487314,480.0,0.00041095,30]
[359208524,1745813487359,480.0,0.00041095,30]
[359208525,1745813487551,221.13009275,0.00041095,30]
[359208526,1745813487594,449.71765461,0.00041095,30]
[359208527,1745813487728,649.25,0.00041095,30]
[359208528,1745813488023,649.25,0.00041095,30]
[359208529,1745813488273,649.25,0.00041095,30]
[359208530,1745813488465,480.0,0.00041095,30]
[359208531,1745813488509,480.0,0.00041095,30]
[359208532,1745813488552,649.25,0.00041095,30]
[359208533,1745813488748,480.0,0.00041095,30]
[359208534,1745813488792,649.25,0.00041095,30]
[359208535,1745813488835,480.0,0.00041095,30]
[359208536,1745813488988,480.0,0.00041095,30]
[359208537,1745813489262,251.00754586,0.00041095,30]
[359208538,1745813489361,480.0,0.00041095,30]
[359208539,1745813489407,276.83173004,0.00041095,30]
[359208540,1745813489463,480.0,0.00041095,30]
[359208541,1745813489602,480.0,0.00041095,30]
[359208542,1745813489645,480.0,0.00041095,30]
[359208543,1745813489699,480.0,0.00041095,30]
[359208544,1745813489764,649.25,0.00041095,30]
[359208545,1745813489876,480.0,0.00041095,30]
[359208546,1745813489922,480.0,0.00041095,30]
[359208547,1745813489969,480.0,0.00041095,30]
[359208548,1745813490030,649.25,0.00041095,30]
[359208549,1745813490121,480.0,0.00041095,30]
[359208550,1745813490172,480.0,0.00041095,30]
[359208551,1745813490221,253.81974633,0.00041095,30]
[359208552,1745813490319,649.25,0.00041095,30]
[359208553,1745813490370,599.42018018,0.00041095,30]
[359208554,1745813490417,480.0,0.00041095,30]
[359208555,1745813490562,649.25,0.00041095,30]
[359208556,1745813490607,480.0,0.00041095,30]
[359208557,1745813490789,649.25,0.00041095,30]
[359208558,1745813491005,480.0,0.00041095,30]
[359208559,1745813491050,649.25,0.00041095,30]
[359208560,1745813491093,480.0,0.00041095,30]
[359208561,1745813491261,649.25,0.00041095,30]
[359208562,1745813491304,480.0,0.00041095,30]
[359208563,1745813491504,649.25,0.00041095,30]
[359208564,1745813491544,305.61191886,0.00041095,30]
[359208565,1745813491748,649.25,0.00041095,30]
[359208566,1745813492123,649.25,0.00041095,30]
[359208567,1745813492177,480.0,0.00041095,30]
[359208568,1745813492219,649.25,0.00041095,30]
[359208569,1745813492258,480.0,0.00041095,30]
[359208570,1745813492416,480.0,0.00041095,30]
[359208571,1745813492472,649.25,0.00041095,30]
[359208572,1745813492513,480.0,0.00041095,30]
[359208573,1745813492608,261.768001,0.00041095,30]
[359208574,1745813492728,480.0,0.00041095,30]
[359208575,1745813492976,480.0,0.00041095,30]
[359208576,1745813493025,480.0,0.00041095,30]
[359208577,1745813493285,261.768001,0.00041095,30]
[359208578,1745813493334,234.59772463,0.00041095,30]
[359208579,1745813493456,480.0,0.00041095,30]
[359208580,1745813493504,649.25,0.00041095,30]
[359208581,1745813493552,480.0,0.00041095,30]
[359208582,1745813493597,261.768001,0.00041095,30]
[359208583,1745813493731,190.17545311,0.00041095,30]
[359208584,1745813493783,649.25,0.00041095,30]
[359208585,1745813493826,480.0,0.00041095,30]
[359208586,1745813494002,649.25,0.00041095,30]
[359208587,1745813494046,480.0,0.00041095,30]
[359208588,1745813494092,480.0,0.00041095,30]
[359208589,1745813494240,649.25,0.00041095,30]
[359208590,1745813494286,480.0,0.00041095,30]
[359208591,1745813494332,480.0,0.00041095,30]
[359208592,1745813494470,649.25,0.00041095,30]
[359208593,1745813494513,395.81611665,0.00041095,30]
[359208594,1745813494611,400.0,0.00041095,30]
[359208595,1745813494740,649.25,0.00041095,30]
[359208596,1745813494877,480.0,0.00041095,30]
[359208597,1745813495079,649.268687,0.00041095,30]
[359208598,1745813495122,334.22950987,0.00041095,30]
[359208599,1745813495372,350.0,0.00041095,30]
[359208600,1745813495834,480.0,0.00041095,30]
[359208601,1745813496060,261.768001,0.00039822,60]
[359208602,1745813496103,480.0,0.00041095,30]
[359208603,1745813496342,261.768001,0.00038548,60]
[359208604,1745813496387,480.0,0.00041095,30]
[359208605,1745813496432,480.0,0.00041095,30]
[359208606,1745813496601,480.0,0.00041095,30]
[359208607,1745813496651,261.768001,0.00037274,60]
[359208608,1745813496693,480.0,0.00041095,30]
[359208609,1745813496735,587.3396488,0.00041095,30]
[359208610,1745813496838,300.51726401,0.00041095,30]
[359208611,1745813496904,261.768001,0.00036,60]
[359208614,1745813496951,480.0,0.00041095,30]
[359208623,1745813497150,480.0,0.00041095,30]
[359208628,1745813497236,261.768001,0.0004109,31]
[359208636,1745813497398,226.85816716,0.00041095,30]
[359208643,1745813497532,261.768001,0.00040742,31]
[359208657,1745813497840,261.768001,0.00040395,31]
[359208666,1745813498143,261.768001,0.00040048,31]
[359208678,1745813498413,480.0,0.00041095,30]
[359208682,1745813498465,261.768001,0.000397,31]
[359208693,1745813498699,480.0,0.00041095,30]
[359208700,1745813498847,480.0,0.00041095,30]
[359208705,1745813498948,480.0,0.00041095,30]
[359208717,1745813499205,480.0,0.00041095,30]
[359208720,1745813499255,480.0,0.00041095,30]
[359208723,1745813499304,480.0,0.00041095,30]
[359208730,1745813499439,480.0,0.00041095,30]
[359208733,1745813499503,480.0,0.00041095,30]
[359208737,1745813499556,480.0,0.00041095,30]
[359208744,1745813499705,480.0,0.00041095,30]
[359208747,1745813499764,480.0,0.00041095,30]
[359208750,1745813499819,480.0,0.00041095,30]
[359208753,1745813499872,480.0,0.00041095,30]
[359208757,1745813499929,480.0,0.00041095,30]
[359208760,1745813499980,605.72081972,0.00041095,30]
[359208762,1745813500032,182.97274615,0.00041095,30]
[359208763,1745813500100,158.56,0.0004,30]
[359208764,1745813500148,480.0,0.00041095,30]
[359208765,1745813500204,480.0,0.00041095,30]
[359208766,1745813500322,480.0,0.00041095,30]
[359208767,1745813500370,218.0443146,0.00041095,30]
[359208768,1745813500427,480.0,0.00041095,30]
[359208769,1745813500471,480.0,0.00041095,30]
[359208770,1745813500581,429.11615764,0.00041095,30]
[359208771,1745813500629,480.0,0.00041095,30]
[359208772,1745813500666,261.768001,0.0002,5]
[359208773,1745813500732,480.0,0.00041095,30]
[359208774,1745813500783,480.0,0.00041095,30]
[359208775,1745813500893,480.0,0.00041095,30]
[359208776,1745813500934,261.768001,0.0002,5]
[359208777,1745813500991,480.0,0.00041095,30]
[359208778,1745813501043,480.0,0.00041095,30]
[359208779,1745813501120,480.0,0.00041095,30]
[359208780,1745813501173,261.768001,0.0002,5]
[359208781,1745813501224,439.70606487,0.00041095,30]
[359208782,1745813501478,261.768001,0.0002,5]
[359208783,1745813501804,261.768001,0.0002,5]
[359208877,1745813517673,158.220458,0.0002,5]
[359208878,1745813519645,158.220458,0.0002,5]
[359208879,1745813523614,150.223392,0.0002,5]
[359208880,1745813528944,200.0,0.00045899,30]
[359208881,1745813529648,207.4,0.00045899,30]
[359208887,1745813530318,215.0738,0.00045899,30]
[359208913,1745813531007,223.0315306,0.00045899,30]
[359208940,1745813531613,231.28369723,0.00045899,30]
[359208969,1745813532272,239.84119403,0.00045899,30]
[359209001,1745813533023,248.71531821,0.00045899,30]
[359209023,1745813533620,257.91778498,0.00045899,30]
[359209077,1745813534862,267.46074303,0.00045899,30]
[359209104,1745813535502,277.35679052,0.00045899,30]
[359209153,1745813536956,287.61899177,0.00045899,30]
[359209154,1745813537377,298.26089446,0.00045899,30]
[359209155,1745813538014,309.29654756,0.00045899,30]
[359209156,1745813538663,320.74051982,0.00045899,30]
[359209157,1745813539350,332.60791905,0.00045899,30]
[359209158,1745813540031,344.91441206,0.00045899,30]
[359209159,1745813540715,357.6762453,0.00045899,30]
[359209179,1745813541357,370.91026638,0.00045899,30]